[Event "*** Titled Tuesday Blitz"]
[Site "Chess.com"]
[Date "2020.11.24"]
[Round "1"]
[White "Saylormoon"]
[Black "AIROPITO7"]
[Result "1-0"]
[WhiteElo "2340"]
[BlackElo "2588"]
[TimeControl "180+1"]
[EndTime "10:20:54 PST"]
[Termination "Saylormoon won by resignation"]

1. e4 {[%clk 0:03:00.9]} 1... d6 {[%clk 0:02:53.8]} 2. d4 {[%clk 0:02:59.7]}
2... e5 {[%clk 0:02:53.5]} 3. Nf3 {[%clk 0:02:58]} 3... Qe7 {[%clk 0:02:45.6]}
4. dxe5 {[%clk 0:02:55.3]} 4... dxe5 {[%clk 0:02:45.3]} 5. Nc3 {[%clk
0:02:55.3]} 5... c6 {[%clk 0:02:39.8]} 6. Bc4 {[%clk 0:02:54.6]} 6... g6 {[%clk
0:02:38.7]} 7. Bg5 {[%clk 0:02:49.1]} 7... Nf6 {[%clk 0:02:37.8]} 8. O-O {[%clk
0:02:42.9]} 8... Bg7 {[%clk 0:02:36.9]} 9. h3 {[%clk 0:02:38.4]} 9... h6 {[%clk
0:02:36.8]} 10. Be3 {[%clk 0:02:34.7]} 10... O-O {[%clk 0:02:35.8]} 11. Qe2
{[%clk 0:02:32.9]} 11... b5 {[%clk 0:02:35.5]} 12. Bb3 {[%clk 0:02:30.1]} 12...
a5 {[%clk 0:02:35.8]} 13. a4 {[%clk 0:02:24.1]} 13... b4 {[%clk 0:02:36.1]} 14.
Nb1 {[%clk 0:02:19.2]} 14... Nxe4 {[%clk 0:02:36.2]} 15. Bb6 {[%clk 0:02:15.8]}
15... Nd6 {[%clk 0:02:30.9]} 16. Bc5 {[%clk 0:02:15.2]} 16... Ba6 {[%clk
0:02:27.8]} 17. Qd2 {[%clk 0:01:58.3]} 17... Rd8 {[%clk 0:02:15.3]} 18. Rd1
{[%clk 0:01:57.4]} 18... Bf8 {[%clk 0:02:15.4]} 19. Qe3 {[%clk 0:01:40]} 19...
Nd7 {[%clk 0:01:59.5]} 20. Bxd6 {[%clk 0:01:38.8]} 20... Qf6 {[%clk 0:00:40.9]}
21. Bxf8 {[%clk 0:01:36.8]} 21... Nxf8 {[%clk 0:00:41.8]} 22. Nbd2 {[%clk
0:01:36.7]} 22... h5 {[%clk 0:00:34.5]} 23. Ne4 {[%clk 0:01:36.2]} 23... Qe7
{[%clk 0:00:30.8]} 24. Neg5 {[%clk 0:01:28.4]} 24... c5 {[%clk 0:00:28.8]} 25.
Bxf7+ {[%clk 0:01:26.3]} 25... Kg7 {[%clk 0:00:27.8]} 26. Qxe5+ {[%clk
0:01:25.8]} 26... Qxe5 {[%clk 0:00:25.9]} 27. Nxe5 {[%clk 0:01:26.7]} 27... Rd4
{[%clk 0:00:22.8]} 28. Rxd4 {[%clk 0:01:24.6]} 28... cxd4 {[%clk 0:00:23.7]} 29.
Rd1 {[%clk 0:01:24]} 29... Rc8 {[%clk 0:00:21]} 30. Bb3 {[%clk 0:01:22.9]} 30...
Rc7 {[%clk 0:00:19.5]} 31. Rxd4 {[%clk 0:01:22.1]} 31... Bc8 {[%clk 0:00:19.9]}
32. Rc4 {[%clk 0:01:18.8]} 32... Rxc4 {[%clk 0:00:18.2]} 33. Nxc4 {[%clk
0:01:18.9]} 33... Kf6 {[%clk 0:00:18.1]} 34. Ne4+ {[%clk 0:01:18.6]} 1-0

[Event "*** Titled Tuesday Blitz"]
[Site "Chess.com"]
[Date "2020.11.24"]
[Round "1"]
[White "Taron_Shagbazyan"]
[Black "03revilo"]
[Result "1-0"]
[WhiteElo "2713"]
[BlackElo "2373"]
[TimeControl "180+1"]
[EndTime "10:20:59 PST"]
[Termination "Taron_Shagbazyan won by resignation"]

1. e4 {[%clk 0:02:59.5]} 1... c5 {[%clk 0:02:39.4]} 2. Nf3 {[%clk 0:02:59.3]}
2... d6 {[%clk 0:02:39.2]} 3. Bb5+ {[%clk 0:02:56.2]} 3... Bd7 {[%clk
0:02:35.8]} 4. a4 {[%clk 0:02:55.7]} 4... Nf6 {[%clk 0:02:34.8]} 5. e5 {[%clk
0:02:54]} 5... dxe5 {[%clk 0:02:26.6]} 6. Nxe5 {[%clk 0:02:54.1]} 6... Nc6
{[%clk 0:02:26.9]} 7. Nxc6 {[%clk 0:02:46.9]} 7... Bxc6 {[%clk 0:02:19.1]} 8.
Bxc6+ {[%clk 0:02:46.5]} 8... bxc6 {[%clk 0:02:20]} 9. O-O {[%clk 0:02:46.7]}
9... e6 {[%clk 0:02:19.8]} 10. d3 {[%clk 0:02:44.4]} 10... h6 {[%clk 0:02:11.5]}
11. Nd2 {[%clk 0:02:44.1]} 11... Bd6 {[%clk 0:02:11.8]} 12. Nc4 {[%clk
0:02:42.5]} 12... Bc7 {[%clk 0:02:10.6]} 13. b3 {[%clk 0:02:39.6]} 13... O-O
{[%clk 0:02:10.2]} 14. Bb2 {[%clk 0:02:39]} 14... Nd5 {[%clk 0:01:22.6]} 15. g3
{[%clk 0:02:33.6]} 15... Qg5 {[%clk 0:01:17]} 16. Qf3 {[%clk 0:02:31.9]} 16...
Nb4 {[%clk 0:01:10.8]} 17. h4 {[%clk 0:02:26]} 17... Qd5 {[%clk 0:00:40.3]} 18.
Qe2 {[%clk 0:02:18.9]} 18... Rae8 {[%clk 0:00:36.8]} 19. f4 {[%clk 0:02:15.3]}
19... f6 {[%clk 0:00:19.9]} 20. Rae1 {[%clk 0:02:14]} 20... e5 {[%clk
0:00:13.8]} 21. f5 {[%clk 0:01:57.8]} 21... Re7 {[%clk 0:00:10.1]} 22. Rf2
{[%clk 0:01:53.5]} 22... Rfe8 {[%clk 0:00:09.9]} 23. Qe4 {[%clk 0:01:53.4]}
23... Qd7 {[%clk 0:00:07.5]} 24. Ba3 {[%clk 0:01:47.2]} 24... Na6 {[%clk
0:00:07.6]} 25. g4 {[%clk 0:01:46.7]} 25... Ba5 {[%clk 0:00:07.7]} 26. Ref1
{[%clk 0:01:42.3]} 26... Bb4 {[%clk 0:00:08]} 27. Bb2 {[%clk 0:01:40.4]} 27...
Nc7 {[%clk 0:00:08]} 28. g5 {[%clk 0:01:39.3]} 28... hxg5 {[%clk 0:00:07.6]} 29.
hxg5 {[%clk 0:01:39.3]} 29... fxg5 {[%clk 0:00:07.9]} 30. f6 {[%clk 0:01:37.4]}
30... Rf7 {[%clk 0:00:07.8]} 31. Nxe5 {[%clk 0:01:32.6]} 31... Qe6 {[%clk
0:00:05.8]} 32. Nxf7 {[%clk 0:01:29.9]} 32... Qxe4 {[%clk 0:00:05.4]} 33. dxe4
{[%clk 0:01:29.2]} 33... Kxf7 {[%clk 0:00:05.3]} 34. fxg7+ {[%clk 0:01:29.5]}
34... Kg8 {[%clk 0:00:05.6]} 35. Rf8+ {[%clk 0:01:29.4]} 1-0

[Event "*** Titled Tuesday Blitz"]
[Site "Chess.com"]
[Date "2020.11.24"]
[Round "1"]
[White "baki83"]
[Black "profofchess"]
[Result "1-0"]
[WhiteElo "2728"]
[BlackElo "2383"]
[TimeControl "180+1"]
[EndTime "10:21:00 PST"]
[Termination "baki83 won by resignation"]

1. e4 {[%clk 0:03:00.8]} 1... e6 {[%clk 0:03:00.1]} 2. Nf3 {[%clk 0:02:58.6]}
2... d5 {[%clk 0:03:00.5]} 3. exd5 {[%clk 0:02:59.4]} 3... exd5 {[%clk
0:03:00.5]} 4. d4 {[%clk 0:03:00]} 4... Nc6 {[%clk 0:03:00.7]} 5. Bb5 {[%clk
0:02:59.1]} 5... Ne7 {[%clk 0:02:58.1]} 6. O-O {[%clk 0:02:58]} 6... a6 {[%clk
0:02:57.5]} 7. Bd3 {[%clk 0:02:54.8]} 7... g6 {[%clk 0:02:55.4]} 8. Re1 {[%clk
0:02:46]} 8... Bg7 {[%clk 0:02:55.4]} 9. c3 {[%clk 0:02:42.9]} 9... O-O {[%clk
0:02:52.9]} 10. Bf4 {[%clk 0:02:42]} 10... Bf5 {[%clk 0:02:44.2]} 11. Na3 {[%clk
0:02:42.2]} 11... Re8 {[%clk 0:02:32.9]} 12. Nc2 {[%clk 0:02:38.5]} 12... Bxd3
{[%clk 0:02:27.2]} 13. Qxd3 {[%clk 0:02:39.4]} 13... Nf5 {[%clk 0:02:27.6]} 14.
Rxe8+ {[%clk 0:02:36.7]} 14... Qxe8 {[%clk 0:02:27.9]} 15. Bxc7 {[%clk
0:02:36.3]} 15... Qd7 {[%clk 0:02:20.9]} 16. Bg3 {[%clk 0:02:35.4]} 16... Re8
{[%clk 0:02:21]} 17. Re1 {[%clk 0:02:33]} 17... Re6 {[%clk 0:02:10.1]} 18. Bf4
{[%clk 0:02:29.5]} 18... Qe8 {[%clk 0:02:08.4]} 19. Rxe6 {[%clk 0:02:28.7]}
19... Qxe6 {[%clk 0:02:09.3]} 20. h3 {[%clk 0:02:27.8]} 20... Nd6 {[%clk
0:02:02.7]} 21. Bxd6 {[%clk 0:02:27.1]} 21... Qxd6 {[%clk 0:02:02.8]} 22. Kf1
{[%clk 0:02:25.8]} 22... h6 {[%clk 0:01:57.2]} 23. Qe2 {[%clk 0:02:25.5]} 23...
Qd7 {[%clk 0:01:55.7]} 24. Ne3 {[%clk 0:02:23.1]} 24... b5 {[%clk 0:01:40.5]}
25. a3 {[%clk 0:02:04.3]} 25... Na5 {[%clk 0:01:39.3]} 26. Ne1 {[%clk
0:02:02.8]} 26... Nc4 {[%clk 0:01:37.7]} 27. Nd3 {[%clk 0:02:01.3]} 27... Bf8
{[%clk 0:01:30.1]} 28. Nf4 {[%clk 0:01:55.1]} 28... Nxe3+ {[%clk 0:01:25.7]} 29.
Qxe3 {[%clk 0:01:54.6]} 29... Qf5 {[%clk 0:01:18.6]} 30. Nd3 {[%clk 0:01:54.4]}
30... Bd6 {[%clk 0:01:13.8]} 31. Kg1 {[%clk 0:01:52.1]} 31... Kg7 {[%clk
0:01:06.8]} 32. Qe2 {[%clk 0:01:50.6]} 32... h5 {[%clk 0:00:59]} 33. h4 {[%clk
0:01:48.7]} 33... Qf6 {[%clk 0:00:55.1]} 34. g3 {[%clk 0:01:48.3]} 34... Qf5
{[%clk 0:00:54.9]} 35. Kg2 {[%clk 0:01:40.4]} 35... Kg8 {[%clk 0:00:52.9]} 36.
Qf3 {[%clk 0:01:40.1]} 36... Qe6 {[%clk 0:00:51.3]} 37. Qe3 {[%clk 0:01:38.7]}
37... Qxe3 {[%clk 0:00:50.9]} 38. fxe3 {[%clk 0:01:38.4]} 38... a5 {[%clk
0:00:49.7]} 39. Kf3 {[%clk 0:01:37.9]} 39... Kf8 {[%clk 0:00:27.2]} 40. Nf4
{[%clk 0:01:32]} 40... b4 {[%clk 0:00:22.4]} 41. axb4 {[%clk 0:01:29.9]} 41...
axb4 {[%clk 0:00:23.3]} 42. Nxd5 {[%clk 0:01:27.9]} 42... b3 {[%clk 0:00:22.2]}
43. c4 {[%clk 0:01:26.9]} 43... Bc7 {[%clk 0:00:20.3]} 44. Nxc7 {[%clk
0:01:26.1]} 1-0

[Event "*** Titled Tuesday Blitz"]
[Site "Chess.com"]
[Date "2020.11.24"]
[Round "1"]
[White "GMJustin"]
[Black "PIwan"]
[Result "0-1"]
[WhiteElo "2253"]
[BlackElo "2554"]
[TimeControl "180+1"]
[EndTime "10:21:01 PST"]
[Termination "PIwan won on time"]

1. e4 {[%clk 0:02:51.7]} 1... e6 {[%clk 0:02:59.9]} 2. d4 {[%clk 0:02:50.9]}
2... d5 {[%clk 0:03:00.8]} 3. Nc3 {[%clk 0:02:50.8]} 3... Nf6 {[%clk 0:03:00.7]}
4. Bg5 {[%clk 0:02:48.8]} 4... Be7 {[%clk 0:02:55.1]} 5. e5 {[%clk 0:02:48.1]}
5... Nfd7 {[%clk 0:02:55.1]} 6. h4 {[%clk 0:02:47.8]} 6... Bxg5 {[%clk
0:02:54.8]} 7. hxg5 {[%clk 0:02:47.3]} 7... Qxg5 {[%clk 0:02:55.7]} 8. Qd3
{[%clk 0:02:42]} 8... h6 {[%clk 0:02:51.7]} 9. Nf3 {[%clk 0:02:24.3]} 9... Qe7
{[%clk 0:02:51.5]} 10. O-O-O {[%clk 0:02:18.1]} 10... Nc6 {[%clk 0:02:50.8]} 11.
g4 {[%clk 0:01:59.7]} 11... Nb6 {[%clk 0:02:50.3]} 12. g5 {[%clk 0:01:44.9]}
12... Nc4 {[%clk 0:02:34.1]} 13. Ne2 {[%clk 0:01:01.3]} 13... Bd7 {[%clk
0:02:26.2]} 14. gxh6 {[%clk 0:00:55.5]} 14... gxh6 {[%clk 0:02:26.1]} 15. Nf4
{[%clk 0:00:46.5]} 15... O-O-O {[%clk 0:02:22]} 16. c3 {[%clk 0:00:44.4]} 16...
N6a5 {[%clk 0:02:13.4]} 17. Nh5 {[%clk 0:00:36.4]} 17... Ba4 {[%clk 0:02:06.5]}
18. Re1 {[%clk 0:00:36.4]} 18... Kb8 {[%clk 0:01:48]} 19. Nf6 {[%clk 0:00:35.7]}
19... c5 {[%clk 0:01:46.6]} 20. Kb1 {[%clk 0:00:28]} 20... Rc8 {[%clk
0:01:37.9]} 21. b3 {[%clk 0:00:23.4]} 21... cxd4 {[%clk 0:01:27.9]} 22. bxa4
{[%clk 0:00:15.1]} 22... dxc3 {[%clk 0:01:22.9]} 23. Nd4 {[%clk 0:00:07.9]}
23... Qb4+ {[%clk 0:01:18]} 24. Nb3 {[%clk 0:00:06]} 24... Nxb3 {[%clk
0:01:17.6]} 25. axb3 {[%clk 0:00:05.8]} 25... Qxb3+ {[%clk 0:01:18.5]} 26. Kc1
{[%clk 0:00:03.9]} 26... Qa3+ {[%clk 0:01:09.6]} 0-1

[Event "*** Titled Tuesday Blitz"]
[Site "Chess.com"]
[Date "2020.11.24"]
[Round "1"]
[White "zaur-mammadov"]
[Black "Chessbard1972"]
[Result "1-0"]
[WhiteElo "2669"]
[BlackElo "2350"]
[TimeControl "180+1"]
[EndTime "10:21:05 PST"]
[Termination "zaur-mammadov won on time"]

1. e4 {[%clk 0:03:00.9]} 1... c5 {[%clk 0:02:58.5]} 2. c3 {[%clk 0:03:00.8]}
2... d5 {[%clk 0:02:57.8]} 3. exd5 {[%clk 0:03:01]} 3... Qxd5 {[%clk 0:02:57.7]}
4. d4 {[%clk 0:03:01.9]} 4... Nf6 {[%clk 0:02:57.8]} 5. Nf3 {[%clk 0:03:02.8]}
5... Bg4 {[%clk 0:02:57]} 6. Nbd2 {[%clk 0:03:03.3]} 6... cxd4 {[%clk
0:02:55.8]} 7. Bc4 {[%clk 0:03:03.6]} 7... Qd6 {[%clk 0:02:43.4]} 8. Qb3 {[%clk
0:03:01.4]} 8... Nc6 {[%clk 0:02:23.1]} 9. Bxf7+ {[%clk 0:02:59.6]} 9... Kd8
{[%clk 0:02:20.4]} 10. O-O {[%clk 0:02:53.7]} 10... e6 {[%clk 0:02:16.3]} 11.
Re1 {[%clk 0:02:49.2]} 11... Nd5 {[%clk 0:02:13.1]} 12. Nc4 {[%clk 0:02:44.1]}
12... Qc7 {[%clk 0:01:51.6]} 13. Nfe5 {[%clk 0:02:38.6]} 13... Bf5 {[%clk
0:01:44.8]} 14. Nxc6+ {[%clk 0:02:18.7]} 14... bxc6 {[%clk 0:01:42]} 15. Ne5
{[%clk 0:02:18.9]} 15... dxc3 {[%clk 0:01:35.2]} 16. bxc3 {[%clk 0:02:16.9]}
16... Bd6 {[%clk 0:01:33.8]} 17. Bg5+ {[%clk 0:01:50.1]} 17... Kc8 {[%clk
0:01:33.2]} 18. Nc4 {[%clk 0:01:39.8]} 18... Bxh2+ {[%clk 0:01:20.2]} 19. Kh1
{[%clk 0:01:39.2]} 19... Qxf7 {[%clk 0:01:17.5]} 20. Kxh2 {[%clk 0:01:39.1]}
20... Qh5+ {[%clk 0:01:13.2]} 21. Kg1 {[%clk 0:01:39.3]} 21... Qxg5 {[%clk
0:01:13.1]} 22. Nd6+ {[%clk 0:01:39.8]} 22... Kc7 {[%clk 0:01:07.7]} 23. Nf7
{[%clk 0:01:36.1]} 23... Qg6 {[%clk 0:00:54.2]} 24. Nxh8 {[%clk 0:01:34.9]}
24... Rxh8 {[%clk 0:00:53.2]} 25. Qa4 {[%clk 0:01:29.7]} 25... Ra8 {[%clk
0:00:39.5]} 26. Qa5+ {[%clk 0:01:22.9]} 26... Kd6 {[%clk 0:00:36.1]} 27. c4
{[%clk 0:01:16.3]} 27... Be4 {[%clk 0:00:11.3]} 28. g3 {[%clk 0:01:15.7]} 28...
Qh5 {[%clk 0:00:04.2]} 29. Rxe4 {[%clk 0:01:13]} 29... Nb6 {[%clk 0:00:01.5]}
30. Qxh5 {[%clk 0:01:11.5]} 1-0

[Event "*** Titled Tuesday Blitz"]
[Site "Chess.com"]
[Date "2020.11.24"]
[Round "1"]
[White "Zubrrr"]
[Black "YIYUKI"]
[Result "1-0"]
[WhiteElo "2655"]
[BlackElo "2337"]
[TimeControl "180+1"]
[EndTime "10:21:08 PST"]
[Termination "Zubrrr won by resignation"]

1. d4 {[%clk 0:02:58.8]} 1... Nf6 {[%clk 0:02:58.5]} 2. c4 {[%clk 0:02:58.9]}
2... g6 {[%clk 0:02:58.3]} 3. g3 {[%clk 0:02:58.9]} 3... Bg7 {[%clk 0:02:58.2]}
4. Bg2 {[%clk 0:02:59.4]} 4... O-O {[%clk 0:02:58.2]} 5. Nc3 {[%clk 0:02:59.8]}
5... d6 {[%clk 0:02:58.1]} 6. Nf3 {[%clk 0:03:00.1]} 6... c6 {[%clk 0:02:56]} 7.
O-O {[%clk 0:02:59.8]} 7... Nbd7 {[%clk 0:02:54.3]} 8. e4 {[%clk 0:02:58.3]}
8... e5 {[%clk 0:02:54.2]} 9. h3 {[%clk 0:02:57.9]} 9... a5 {[%clk 0:02:52.2]}
10. Be3 {[%clk 0:02:57.3]} 10... exd4 {[%clk 0:02:51.9]} 11. Nxd4 {[%clk
0:02:57.1]} 11... Re8 {[%clk 0:02:51.9]} 12. Re1 {[%clk 0:02:53.6]} 12... Nc5
{[%clk 0:02:50.9]} 13. Qc2 {[%clk 0:02:53.3]} 13... Nfd7 {[%clk 0:02:44.6]} 14.
Rad1 {[%clk 0:02:50.9]} 14... Qe7 {[%clk 0:02:40.5]} 15. f4 {[%clk 0:02:44.1]}
15... h5 {[%clk 0:02:35.2]} 16. Bf2 {[%clk 0:02:42.2]} 16... Nf8 {[%clk
0:02:23.3]} 17. b3 {[%clk 0:02:14]} 17... Bd7 {[%clk 0:02:08.5]} 18. Nde2 {[%clk
0:01:48.1]} 18... h4 {[%clk 0:02:04.4]} 19. g4 {[%clk 0:01:46.9]} 19... Nfe6
{[%clk 0:01:51.3]} 20. Kh1 {[%clk 0:01:25.4]} 20... g5 {[%clk 0:01:35.7]} 21. f5
{[%clk 0:01:18.6]} 21... Nf4 {[%clk 0:01:35.1]} 22. Nxf4 {[%clk 0:01:18.7]}
22... gxf4 {[%clk 0:01:35.3]} 23. Qd2 {[%clk 0:01:04.5]} 23... Be5 {[%clk
0:01:34.3]} 24. Ne2 {[%clk 0:01:01.4]} 24... Qg5 {[%clk 0:01:30]} 25. Bxc5
{[%clk 0:00:50.6]} 25... dxc5 {[%clk 0:01:25.4]} 26. Qxd7 {[%clk 0:00:50.5]}
26... Rad8 {[%clk 0:01:20.1]} 27. Qxb7 {[%clk 0:00:50.1]} 27... Rxd1 {[%clk
0:01:19.8]} 28. Rxd1 {[%clk 0:00:50.6]} 28... f3 {[%clk 0:01:19.9]} 29. Bxf3
{[%clk 0:00:50.6]} 29... Qe3 {[%clk 0:01:16.1]} 30. Kg2 {[%clk 0:00:47.3]} 30...
a4 {[%clk 0:01:16.3]} 31. Qxc6 {[%clk 0:00:41.2]} 31... Rb8 {[%clk 0:01:13.7]}
32. Qxa4 {[%clk 0:00:40.4]} 32... Bd4 {[%clk 0:01:10.5]} 33. Nxd4 {[%clk
0:00:38.8]} 33... cxd4 {[%clk 0:01:10.8]} 34. c5 {[%clk 0:00:35.8]} 34... d3
{[%clk 0:01:10.1]} 35. Qc4 {[%clk 0:00:33.7]} 35... d2 {[%clk 0:01:10.1]} 36.
Qe2 {[%clk 0:00:32.1]} 36... Qxc5 {[%clk 0:01:07.6]} 37. Rxd2 {[%clk 0:00:30.7]}
37... Qe5 {[%clk 0:01:07.4]} 38. Qf2 {[%clk 0:00:30.8]} 38... Rc8 {[%clk
0:01:05.6]} 39. Qxh4 {[%clk 0:00:29.4]} 1-0

[Event "*** Titled Tuesday Blitz"]
[Site "Chess.com"]
[Date "2020.11.24"]
[Round "1"]
[White "BikingBrian"]
[Black "Chigorinetz"]
[Result "0-1"]
[WhiteElo "2260"]
[BlackElo "2560"]
[TimeControl "180+1"]
[EndTime "10:21:08 PST"]
[Termination "Chigorinetz won by resignation"]

1. d4 {[%clk 0:03:00.9]} 1... d5 {[%clk 0:02:59]} 2. Bf4 {[%clk 0:03:00.3]} 2...
Bg4 {[%clk 0:02:57.7]} 3. c4 {[%clk 0:02:59.3]} 3... Nc6 {[%clk 0:02:56.7]} 4.
f3 {[%clk 0:02:54]} 4... Bh5 {[%clk 0:02:55.6]} 5. e3 {[%clk 0:02:54.1]} 5... e5
{[%clk 0:02:54.4]} 6. dxe5 {[%clk 0:02:52.7]} 6... d4 {[%clk 0:02:41.1]} 7. exd4
{[%clk 0:02:46.1]} 7... Qxd4 {[%clk 0:02:39.3]} 8. Qxd4 {[%clk 0:02:37.1]} 8...
Nxd4 {[%clk 0:02:38.3]} 9. Bd3 {[%clk 0:02:33.7]} 9... O-O-O {[%clk 0:02:37.1]}
10. Be4 {[%clk 0:02:20.8]} 10... Bg6 {[%clk 0:02:23.1]} 11. Ne2 {[%clk 0:01:42]}
11... Bxe4 {[%clk 0:02:20]} 12. Nxd4 {[%clk 0:01:41.7]} 12... Bxb1 {[%clk
0:02:09.6]} 13. Rxb1 {[%clk 0:01:34.2]} 13... Rxd4 {[%clk 0:02:07.5]} 14. Be3
{[%clk 0:01:34.6]} 14... Rd7 {[%clk 0:01:57.4]} 15. Ke2 {[%clk 0:01:29.8]} 15...
Ne7 {[%clk 0:01:56.4]} 16. g4 {[%clk 0:01:29.1]} 16... Nc6 {[%clk 0:01:55.6]}
17. f4 {[%clk 0:01:29]} 17... h5 {[%clk 0:01:52.1]} 18. h3 {[%clk 0:01:26.4]}
18... b6 {[%clk 0:01:44]} 19. a3 {[%clk 0:01:24.2]} 19... Bc5 {[%clk 0:01:42.6]}
20. b4 {[%clk 0:01:22.5]} 20... Bxe3 {[%clk 0:01:40.4]} 21. Kxe3 {[%clk
0:01:23.4]} 21... a5 {[%clk 0:01:32.9]} 22. b5 {[%clk 0:01:21.5]} 22... Nd8
{[%clk 0:01:31.5]} 23. f5 {[%clk 0:01:20.3]} 23... Re8 {[%clk 0:01:29.3]} 24.
Kf4 {[%clk 0:01:18.3]} 24... Rd4+ {[%clk 0:01:28.1]} 25. Kg5 {[%clk 0:01:17.6]}
25... hxg4 {[%clk 0:01:22.7]} 26. hxg4 {[%clk 0:01:13.9]} 26... Rxe5 {[%clk
0:01:21.1]} 27. Rh8 {[%clk 0:01:11.3]} 27... Kd7 {[%clk 0:01:17.1]} 28. a4
{[%clk 0:01:05.5]} 28... Ke7 {[%clk 0:01:11.1]} 29. Rc1 {[%clk 0:00:59.6]} 29...
Ne6+ {[%clk 0:01:04.6]} 30. Kh5 {[%clk 0:00:50.7]} 30... g6+ {[%clk 0:01:02.4]}
31. Kh6 {[%clk 0:00:48.1]} 31... gxf5 {[%clk 0:01:01.1]} 32. Rg1 {[%clk
0:00:41.2]} 32... Rxg4 {[%clk 0:00:58.8]} 33. Rxg4 {[%clk 0:00:39.1]} 33... fxg4
{[%clk 0:00:58.4]} 34. c5 {[%clk 0:00:40]} 34... g3 {[%clk 0:00:55.2]} 35. cxb6
{[%clk 0:00:39.4]} 35... cxb6 {[%clk 0:00:54.3]} 36. Rb8 {[%clk 0:00:39.2]}
36... g2 {[%clk 0:00:52.2]} 37. Rb7+ {[%clk 0:00:39.3]} 37... Kf6 {[%clk
0:00:50.8]} 38. Rxb6 {[%clk 0:00:35.9]} 0-1

[Event "*** Titled Tuesday Blitz"]
[Site "Chess.com"]
[Date "2020.11.24"]
[Round "1"]
[White "bazar-wokzal"]
[Black "ViktoriyaTarasova"]
[Result "0-1"]
[WhiteElo "2544"]
[BlackElo "2276"]
[TimeControl "180+1"]
[EndTime "10:21:12 PST"]
[Termination "ViktoriyaTarasova won on time"]

1. e4 {[%clk 0:02:59.7]} 1... e5 {[%clk 0:02:59.5]} 2. Bc4 {[%clk 0:02:59.3]}
2... Nf6 {[%clk 0:02:57.5]} 3. d3 {[%clk 0:02:59.3]} 3... c6 {[%clk 0:02:57.1]}
4. Nf3 {[%clk 0:02:59.1]} 4... d5 {[%clk 0:02:56.7]} 5. Bb3 {[%clk 0:02:59.6]}
5... Bd6 {[%clk 0:02:54.8]} 6. Nc3 {[%clk 0:02:59.3]} 6... d4 {[%clk 0:02:47]}
7. Ne2 {[%clk 0:02:58.8]} 7... a5 {[%clk 0:02:44.7]} 8. c3 {[%clk 0:02:58.4]}
8... c5 {[%clk 0:02:42.8]} 9. cxd4 {[%clk 0:02:58.1]} 9... cxd4 {[%clk
0:02:42.3]} 10. O-O {[%clk 0:02:57.2]} 10... Nc6 {[%clk 0:02:40.7]} 11. Bg5
{[%clk 0:02:51.1]} 11... h6 {[%clk 0:02:40]} 12. Bh4 {[%clk 0:02:50.7]} 12... g5
{[%clk 0:02:36.4]} 13. Bg3 {[%clk 0:02:50.6]} 13... Nh5 {[%clk 0:02:36.3]} 14.
Rc1 {[%clk 0:02:40.8]} 14... O-O {[%clk 0:02:19.2]} 15. Nd2 {[%clk 0:02:22.7]}
15... Nf4 {[%clk 0:02:07.2]} 16. Nc4 {[%clk 0:02:12.9]} 16... Bc7 {[%clk
0:02:04.3]} 17. h4 {[%clk 0:01:38.9]} 17... gxh4 {[%clk 0:01:40.5]} 18. Nxf4
{[%clk 0:01:27.9]} 18... exf4 {[%clk 0:01:39.6]} 19. Qh5 {[%clk 0:01:18.6]}
19... Qg5 {[%clk 0:01:14.3]} 20. Qxg5+ {[%clk 0:01:14.9]} 20... hxg5 {[%clk
0:01:13.7]} 21. Bh2 {[%clk 0:00:56.6]} 21... a4 {[%clk 0:01:13.5]} 22. Bd1
{[%clk 0:00:54.8]} 22... Be6 {[%clk 0:01:07.8]} 23. Re1 {[%clk 0:00:05.7]} 23...
g4 {[%clk 0:00:57.9]} 24. Kh1 {[%clk 0:00:01.8]} 24... Kg7 {[%clk 0:00:55.7]}
0-1

[Event "*** Titled Tuesday Blitz"]
[Site "Chess.com"]
[Date "2020.11.24"]
[Round "1"]
[White "ZEN-22"]
[Black "Shield12"]
[Result "0-1"]
[WhiteElo "2450"]
[BlackElo "2914"]
[TimeControl "180+1"]
[EndTime "10:21:14 PST"]
[Termination "Shield12 won by resignation"]

1. e3 {[%clk 0:03:00.7]} 1... d5 {[%clk 0:02:59.2]} 2. Ne2 {[%clk 0:02:58.1]}
2... Nf6 {[%clk 0:02:59]} 3. d4 {[%clk 0:02:59]} 3... g6 {[%clk 0:02:59.2]} 4.
c4 {[%clk 0:02:58.9]} 4... Bg7 {[%clk 0:03:00.1]} 5. cxd5 {[%clk 0:02:58.1]}
5... Nxd5 {[%clk 0:03:01]} 6. h4 {[%clk 0:02:58]} 6... Nf6 {[%clk 0:02:59.4]} 7.
h5 {[%clk 0:02:55.6]} 7... Nxh5 {[%clk 0:02:59.3]} 8. Rxh5 {[%clk 0:02:56]} 8...
gxh5 {[%clk 0:03:00.2]} 9. Nf4 {[%clk 0:02:56.5]} 9... Bg4 {[%clk 0:02:38.4]}
10. Be2 {[%clk 0:02:55.5]} 10... e5 {[%clk 0:02:34.7]} 11. Nxh5 {[%clk
0:02:54.6]} 11... Bxh5 {[%clk 0:02:34.1]} 12. Bxh5 {[%clk 0:02:54.4]} 12... exd4
{[%clk 0:02:33.6]} 13. Qf3 {[%clk 0:02:53]} 13... O-O {[%clk 0:02:31.8]} 14.
Qxb7 {[%clk 0:02:51.7]} 14... Nd7 {[%clk 0:02:30.9]} 15. exd4 {[%clk 0:02:50.9]}
15... Qh4 {[%clk 0:02:28]} 16. Bxf7+ {[%clk 0:02:40.3]} 16... Kxf7 {[%clk
0:02:26.1]} 17. Qd5+ {[%clk 0:02:39.2]} 17... Kg6 {[%clk 0:02:18.6]} 18. Qxd7
{[%clk 0:02:34.9]} 18... Qxf2+ {[%clk 0:01:59.7]} 19. Kd1 {[%clk 0:02:34.7]}
19... Qf1+ {[%clk 0:02:00.6]} 20. Kc2 {[%clk 0:02:33.7]} 20... Qf5+ {[%clk
0:01:46.9]} 21. Qxf5+ {[%clk 0:02:32.3]} 21... Rxf5 {[%clk 0:01:47.8]} 22. Nd2
{[%clk 0:02:22.2]} 22... Rf2 {[%clk 0:01:44.6]} 23. Kd3 {[%clk 0:02:21.6]} 23...
Rxg2 {[%clk 0:01:27.8]} 24. Nf3 {[%clk 0:02:13.8]} 24... Rg3 {[%clk 0:01:27.4]}
25. Ke2 {[%clk 0:02:13.2]} 25... Rf8 {[%clk 0:01:25.9]} 26. Ne5+ {[%clk
0:00:53.7]} 26... Bxe5 {[%clk 0:01:24]} 27. dxe5 {[%clk 0:00:54.6]} 27... Rg1
{[%clk 0:01:23.9]} 28. b3 {[%clk 0:00:52.6]} 28... h5 {[%clk 0:01:23.6]} 29. e6
{[%clk 0:00:47.5]} 29... Re8 {[%clk 0:01:22.2]} 30. Kf2 {[%clk 0:00:46.2]} 30...
Rh1 {[%clk 0:01:21.2]} 31. Kg2 {[%clk 0:00:45.7]} 31... Rd1 {[%clk 0:01:21.1]}
32. Kh3 {[%clk 0:00:43.2]} 32... Rxe6 {[%clk 0:01:20.6]} 33. Bb2 {[%clk
0:00:43.2]} 33... Re3+ {[%clk 0:01:19.7]} 34. Kh4 {[%clk 0:00:43.2]} 34... Rxa1
{[%clk 0:01:16.1]} 35. Bxa1 {[%clk 0:00:43]} 35... Re2 {[%clk 0:01:17]} 36. a4
{[%clk 0:00:39.9]} 36... Re3 {[%clk 0:01:17.3]} 37. b4 {[%clk 0:00:33.5]} 37...
Re4+ {[%clk 0:01:17.4]} 38. Kh3 {[%clk 0:00:32.6]} 38... Rxb4 {[%clk 0:01:18.3]}
39. Be5 {[%clk 0:00:32.5]} 39... c6 {[%clk 0:01:17.7]} 40. a5 {[%clk 0:00:32.9]}
40... Ra4 {[%clk 0:01:18.3]} 41. Bc7 {[%clk 0:00:32.6]} 41... c5 {[%clk
0:01:18.6]} 42. Kg3 {[%clk 0:00:32.6]} 42... c4 {[%clk 0:01:19.1]} 43. Kf2
{[%clk 0:00:33.1]} 43... c3 {[%clk 0:01:18.4]} 44. Ke3 {[%clk 0:00:32.6]} 44...
c2 {[%clk 0:01:18]} 45. Kd2 {[%clk 0:00:32.4]} 45... Rc4 {[%clk 0:01:17.8]} 0-1